Cogmind - Beta 9.4 @@@ ROGUE MODE // 2020.03.28 @ 14:55:23 // Winter2019/RPGLIKE Player: IAMCRAIG Result: Destroyed by D-53 Grenadier with Mini Grenade Launcher Performance ------------- Evolutions (0) 0 Regions Visited (2) 400 Robots Destroyed (16) 80 Value Destroyed (412) 412 Prototype IDs (5) 100 Alien Tech Used (0) 0 Bonus (0) 0 TOTAL SCORE: 992 Bonus ------- None Cogmind --------- Core Integrity 0/700 Matter 290/300 Energy 255/275 System Corruption 0% Temperature Cool (2) Movement Walking (120) Location -10/Mines Parts ------- > --- POWER (2) -------- Ion Engine Light Ion Engine > --- PROPULSION (2) --- Aluminum Leg Aluminum Leg > --- UTILITY (3) ------ Improved Targeting Computer Improved Targeting Computer Light Armor Plating > --- WEAPON (3) ------- Light EM Pulse Cannon Light EM Pulse Cannon Light EM Pulse Cannon > --- INVENTORY (1) ---- Propulsion Shielding Peak State ------------ > --- POWER ------------ Ion Engine Ion Engine > --- PROPULSION ------- Aluminum Leg Aluminum Leg > --- UTILITY ---------- Improved Targeting Computer Improved Targeting Computer Light Armor Plating > --- WEAPON ----------- Light EM Pulse Cannon Light EM Pulse Cannon Light EM Pulse Cannon > --- INVENTORY -------- Propulsion Shielding [Rating: 15] Favorites ----------- Power Ion Engine Engine Ion Engine Propulsion Aluminum Leg Leg Aluminum Leg Wheel Wheel Utility Improved Targeting Computer Processor Improved Targeting Computer Protection Light Armor Plating Weapon Light EM Pulse Cannon Energy Gun Small Laser Energy Cannon Light EM Pulse Cannon Ballistic Gun Light Assault Rifle Launcher Grenade Launcher Build | -11 -10 -10 ------- Run | Scr Mat Min Slots Evolved 6 | 3 3 . Power 1 | . 1 . Propulsion 1 | 1 . . Utility 2 | 1 1 . Weapon 2 | 1 1 . Parts Attached 18 | 6 12 . Power 3 | 1 2 . Engine 3 | 1 2 . Core . | . . . Reactor . | . . . Propulsion 5 | 3 2 . Treads . | . . . Leg 4 | 2 2 . Wheel 1 | 1 . . Hover . | . . . Flight . | . . . Utility 3 | . 3 . Device . | . . . Storage . | . . . Processor 2 | . 2 . Hackware . | . . . Protection 1 | . 1 . Artifact . | . . . Weapon 7 | 2 5 . Energy Gun 2 | 1 1 . Energy Cannon 3 | . 3 . Ballistic Gun 1 | 1 . . Ballistic Cannon . | . . . Launcher 1 | . 1 . Special Weapon . | . . . Impact Weapon . | . . . Slashing Weapon . | . . . Piercing Weapon . | . . . Special Melee Weapon . | . . . Unidentified Prototypes . | . . . Parts Lost . | . . . Power . | . . . Propulsion . | . . . Utility . | . . . Weapon . | . . . Highest Loss Streak . | . . . Average Slot Usage (%) 94 | . 94 100 Engine 15 | . 14 20 Leg 23 | . 23 20 Processor 19 | . 19 20 Protection 4 | . 4 10 Energy Gun 2 | . 2 . Energy Cannon 28 | . 28 30 Launcher 1 | . 1 . Naked Turns . | . . . Heaviest Build 25 | 7 25 23 Greatest Support 25 | 20 25 25 Greatest Overweight (x) 1 | . 1 . Average Overweight (x) . | . . . Largest Inventory Capacity 1 | . 1 1 Average Capacity . | . . 1 Most Carried 1 | . 1 1 Average Carried . | . . 1 Final Capacity 1 | . 1 1 Final Carried 1 | . 1 1 Class Distribution -------------------- 54% | Gunner 45% | Mutant Dominant Class ---------------- Gunner | -10/Materials Gunner | -10/Mines Resources | -11 -10 -10 ----------- Run | Scr Mat Min Matter Collected 427 | 267 160 . Remotely . | . . . Salvage Created 678 | 64 614 . Parts 34 | 1 33 . Haulers Intercepted 2 | . 2 . Recyclers Shooed . | . . . Parts Field Recycled . | . . . Retrieved Matter . | . . . Parts Self-Destructed . | . . . Prevented . | . . . Kills | -11 -10 -10 ------- Run | Scr Mat Min Combat Hostiles Destroyed 6 | . 6 . Cannons 6 | . 6 . Classes Destroyed 6 | 1 5 . Worker 2 | . 2 . Hauler 2 | . 2 . Recycler 1 | 1 . . Operator 2 | . 2 . Watcher 3 | . 3 . Grunt 6 | . 6 . Best Kill Streak 3 | 1 3 . Combat Bots Only 2 | . 2 . Max Kills in Single Turn 2 | 1 2 . Gunslinging . | . . . Exploded . | . . . Melee . | . . . Uniques/NPCs Destroyed . | . . . Combat | -11 -10 -10 -------- Run | Scr Mat Min Damage Taken 945 | . 599 346 Core 792 | . 518 274 Absorbed by Shields . | . . . Redirected to Core 492 | . 282 210 Core Remaining (%) 100 | 100 . . Volleys Fired 37 | 7 29 1 Largest 3 | 2 3 3 Hottest 168 | 60 168 168 Shots Fired 75 | 14 58 3 Gun 14 | 14 . . Cannon 56 | . 53 3 Launcher 5 | . 5 . Special . | . . . Kinetic 7 | 7 . . Thermal 7 | 7 . . Explosive 5 | . 5 . Electromagnetic 56 | . 53 3 Robot Hit Streak 14 | 5 14 1 Robot Miss Streak 5 | 3 5 2 Penetration Max . | . . . Secondary Targets . | . . . Shots Hit Robots 39 | 7 31 1 Core Hits 19 | 2 17 . Critical Hits . | . . . Critical Kills . | . . . Critical Parts Destroyed . | . . . Melee Attacks . | . . . Impact . | . . . Slashing . | . . . Piercing . | . . . Sneak Attacks . | . . . Combat Hostiles . | . . . Follow-up Attacks . | . . . Damage Inflicted 964 | 79 865 20 Guns 79 | 79 . . Cannons 783 | . 763 20 Explosions 102 | . 102 . Melee . | . . . Ramming . | . . . Kinetic 46 | 46 . . Thermal 73 | 33 40 . Explosive 62 | . 62 . Electromagnetic 783 | . 763 20 Impact . | . . . Slashing . | . . . Piercing . | . . . Highest Corruption . | . . . Average Corruption . | . . . Corruption Purged . | . . . Overload Shots . | . . . Overflow Damage 10 | . 10 . Projectiles 10 | . 10 . Explosions . | . . . Melee . | . . . Knockbacks . | . . . Impact . | . . . Kinetic . | . . . Secondary . | . . . Self-Inflicted Damage 85 | . 85 . Shots 4 | . 4 . Rammed . | . . . Targets Rammed . | . . . Kicked . | . . . Crushed . | . . . Highest Temperature 254 | 40 254 42 Average Temperature 81 | 21 96 28 Received Heat Transfer 102 | . 102 . Siege Activations . | . . . Robots Corrupted 1 | . 1 . Combat Hostiles . | . . . Parts Fried 6 | . 6 . Impact Corruptions . | . . . Robots Melted . | . . . Combat Hostiles . | . . . Parts Melted . | . . . Heat Transferred 125 | 75 50 . Parts Sabotaged . | . . . Parts Stolen . | . . . Parts Stripped . | . . . Power Chain Reactions 1 | . 1 . Missiles Intercepted . | . . . Alert | -11 -10 -10 ------- Run | Scr Mat Min Peak Influence 351 | 5 351 46 Average Influence 116 | 1 138 46 Maximum Alert Level 1 | . 1 . Low Security (%) 82 | 100 79 100 Level 1 17 | . 20 . Level 2 . | . . . Level 3 . | . . . Level 4 . | . . . Level 5 . | . . . High Security . | . . . Max Security . | . . . Squads Dispatched 2 | . 2 . Investigation . | . . . Extermination . | . . . Reinforcement 2 | . 2 . Assault . | . . . Garrison . | . . . Intercept . | . . . Construction Impeded . | . . . Haulers Reinforced . | . . . Stealth | -11 -10 -10 --------- Run | Scr Mat Min Distress Signals 1 | . 1 . Communications Jammed . | . . . Distress Signals . | . . . Times Spotted 17 | . 15 2 Peak Tracking Total 4 | . 4 2 Tactical Retreats . | . . . Traps | -11 -10 -10 ------- Run | Scr Mat Min Traps Triggered . | . . . Indirectly . | . . . Trap Hack Attempts . | . . . Triggered . | . . . Disarmed . | . . . Reprogrammed . | . . . Reused . | . . . Traps Extracted . | . . . Installed 3 | . . 3 Triggered . | . . . Machines | -11 -10 -10 ---------- Run | Scr Mat Min Machines Disabled 10 | . 10 . Max in Single Turn 2 | . 2 . Machines Sabotaged . | . . . Garrisons Compromised . | . . . Overloaded Fab Kills . | . . . Fab Network Shutdowns . | . . . Hacking | -11 -10 -10 --------- Run | Scr Mat Min Machines Accessed 7 | . 7 . Terminals 4 | . 4 . Fabricators . | . . . Repair Stations 1 | . 1 . Recycling Units 2 | . 2 . Scanalyzers . | . . . Garrison Access . | . . . Total Hacks 30 | . 30 . Successful 23 | . 23 . Failed 7 | . 7 . Catastrophic . | . . . Database Lockouts . | . . . Manual 15 | . 15 . Terminals 21 | . 21 . Fabricators . | . . . Repair Stations 3 | . 3 . Recycling Units 6 | . 6 . Scanalyzers . | . . . Garrison Access . | . . . Terminal Hacks 10 | . 10 . Robot Analysis 3 | . 3 . Prototype ID Bank 3 | . 3 . Terminal Index 1 | . 1 . Unreport Threat 1 | . 1 . Registered Components 1 | . 1 . Zone Layout 1 | . 1 . Fabricator Hacks . | . . . Repair Station Hacks 3 | . 3 . Scan Component 1 | . 1 . Repair 1 | . 1 . Refit 1 | . 1 . Recycling Unit Hacks 3 | . 3 . Report Inventory 2 | . 2 . Retrieve Components 1 | . 1 . Scanalyzer . | . . . Garrison Access Hacks . | . . . Unauthorized Hacks 16 | . 16 . Terminals 5 | . 5 . Botnet 4 | . 4 . Operators 1 | . 1 . Fabricators . | . . . Repair Stations . | . . . Recycling Units 2 | . 2 . Reject 2 | . 2 . Scanalyzers . | . . . Garrison Access . | . . . Data Cores Recovered 1 | . 1 . Used 1 | . 1 . Hacking Detections 5 | . 5 . Full Trace Events 1 | . 1 . Feedback Events . | . . . Feedback Blocked . | . . . Robot Schematics Acquired . | . . . Robots Built . | . . . Matter . | . . . Time . | . . . Total Robot Build Rating . | . . . Part Schematics Acquired . | . . . Parts Built . | . . . Matter . | . . . Time . | . . . Total Part Build Rating . | . . . Parts Repaired 1 | . 1 . Time 26 | . 26 . Parts Recycled . | . . . Recycled Matter . | . . . Retrieved Matter . | . . . Retrieved Components 5 | . 5 . Parts Scanalyzed . | . . . Part Schematics Acquired . | . . . Parts Damaged . | . . . Bothacking | -11 -10 -10 ------------ Run | Scr Mat Min Used RIF Installer . | . . . Robots Hacked . | . . . Non-combat . | . . . Combat . | . . . Robot Hacks Applied . | . . . Relay Couplers Released . | . . . Robots Rewired . | . . . Allies Hacked . | . . . Hacks Repelled . | . . . Allies | -11 -10 -10 -------- Run | Scr Mat Min Total Allies . | . . . Largest Group . | . . . Highest-Rated Group . | . . . Highest-Rated Ally . | . . . Total Orders . | . . . Ally Attacks . | . . . Total Damage . | . . . Kills . | . . . Allies Corrupted . | . . . Allies Melted . | . . . Intel | -11 -10 -10 ------- Run | Scr Mat Min Robot Analysis Total 3 | . 3 . Derelict Logs Recovered 2 | . . 2 Drone Launches . | . . . Drone Recoveries . | . . . Exploration | -11 -10 -10 ------------- Run | Scr Mat Min Turns Passed 912 | 92 744 76 Spaces Moved 616 | 64 493 59 Core 5 | 5 . . Treads . | . . . Legs 588 | 36 493 59 Wheels 23 | 23 . . Hover . | . . . Flight . | . . . Fastest Speed 50 | 50 120 120 Average Speed 120 | 100 123 120 Slowest Speed 150 | 120 150 120 Overloaded Moves . | . . . Propulsion Burnouts . | . . . Robots Hopped . | . . . Cave-ins Triggered 1 | . 1 . Exploration Rate (%) 34 | 5 80 18 Regions Visited 2 Branch Regions 1 Pre-discovered Areas 1 | . . 1 Known Exits Taken . | . . . Unknown Exits Taken 2 | 1 1 . Scrap Searched . | . . . Spaces Dug . | . . . Terrain Destroyed 23 | . 23 . Melee . | . . . Projectile . | . . . AOE 23 | . 23 . Actions | -11 -10 -10 --------- Run | Scr Mat Min Total 719 | 77 579 63 Wait 32 | . 32 . Move 614 | 63 492 59 Hop . | . . . Pick Up 2 | . 2 . Fast Attach 16 | 6 10 . Attach . | . . . Detach . | . . . Swap 2 | . 2 . Drop 9 | 1 8 . Fire 37 | 7 29 1 Melee . | . . . Ram . | . . . Kick . | . . . Crush . | . . . Escape Stasis . | . . . Rewire . | . . . Trap 3 | . . 3 Miscellaneous 4 | . 4 . Route ------- -11/Scrapyard -10/Materials (discovered 4 exits: *Mat x2 / [*Min x2]) -10/Mines (discovered 2 exits: *Mat x2) History --------- Turn | Location | Event 9 | -11/Scrapyard | Discovered new exit (range 15) 26 | -11/Scrapyard | Upgraded with Propulsion slot (x1) 26 | -11/Scrapyard | Upgraded with Utility slot (x1) 26 | -11/Scrapyard | Upgraded with Weapon slot (x1) 93 | -11/Scrapyard | Entered Materials 133 | -10/Materials | Crushed by falling debris 133 | -10/Materials | Core integrity fell below 50% 188 | -10/Materials | Repaired Sml. Laser 215 | -10/Materials | Upgraded with Weapon slot (x1) 343 | -10/Materials | Discovered new exit (range 15) 380 | -10/Materials | Discovered new exit (range 18) 520 | -10/Materials | Reached level 2 525 | -10/Materials | Upgraded with Power slot (x1) 525 | -10/Materials | Upgraded with Utility slot (x1) 542 | -10/Materials | Discovered new exit (range 13) 725 | -10/Materials | Discovered new exit (range 11) 837 | -10/Materials | Entered Mines 847 | -10/Mines | Identified exit to Materials 864 | -10/Mines | Discovered exit to Materials (range 11) 887 | -10/Mines | Found a hidden stash of uninstalled traps 900 | -10/Mines | Assembled infested the area 908 | -10/Mines | Core integrity fell below 20% 913 | -10/Mines | Destroyed by D-53 Grenadier with Mini Grenade Launcher Last Messages --------------- Something is scanning the area. 00847_ Acquired derelict log, extracted data. 00858_ K-01 Serf collects debris. 00864_ EXIT=FOUND: MATERIALS 00867_ K-01 Serf collects debris. 00876_ Acquired derelict log, extracted data. World map updated: -9/Materials. 00887_ A stash of uninstalled traps is hidden here! 00894_ Installed Shock Trap. 00900_ ALERT: Infestation in the mines, dispatching Demolisher response squad. 00903_ B6-SQY(h): "I'll hold them off! Go on ahead or try to find another way!" 00903_ HV Slug penetrates C-30 ARC. 00903_ HV Slug penetrates Wall. 00903_ C-30 ARC bursts open, deploying its payload. 00903_ D-53 Grenadier unfolds itself. 00903_ B6-SQY(h) destroyed. 00904_ K-01 Serf collects debris. 00908_ The unstable cave ceiling collapses. Map ----- +----------------------------------------------------+ | | | | | | | | | | | | | | | | | | | ?????????????????????????????????????????????????? | | ?????????????????????????????????????????????????? | | ?????#########?????????#######???????????????????? | | ???## #???????### ##??????????????????? | | ??## ????????# #??????????????????? | | ??# #?????????????## #??????????????????? | | ?## ##?????????????# % ##?????????????????? | | ## #????????????### #####?????????????? | | # #???????????## #?# d #?????????????? | | # ##??????????# < #??# # #?????????????? | | # #####??????# #??# d ] ########??????? | | ## #??????# #### = *???????? | | ?## #?????## ## #?????????????? | | ??## ##????## t #?????????????? | | ???# ##???### ##?????????????? | | ???# ## #???## #?????????????? | | ???# ## ##### t @ ##?????????????? | | ???# ## ##??????????????? | | ???# ### ##???????????????? | | ???############ ##?# ##????????????????? | | ??????????????## ##??#### ###?????????????????? | | ???????????????## #??????####???????????????????? | | ????????????????# #?????????????????????????????? | | ????????????????# #?????????????????????????????? | | ????????????????# #?????????????????????????????? | | ????????????????# #?????????????????????????????? | | ????????????????# ?????????????????????????????? | | ???????????????? ?????????????????????????????? | | ????????????????#####????????????????????????????? | | ?????????????????????????????????????????????????? | | ?????????????????????????????????????????????????? | | ?????????????????????????????????????????????????? | | ?????????????????????????????????????????????????? | | ?????????????????????????????????????????????????? | | ?????????????????????????????????????????????????? | | ?????????????????????????????????????????????????? | | ?????????????????????????????????????????????????? | | ?????????????????????????????????????????????????? | | ?????????????????????????????????????????????????? | | ?????????????????????????????????????????????????? | | ?????????????????????????????????????????????????? | +----------------------------------------------------+ Best States ------------- Heat Dissipation 55 Energy Generation 15 Energy Capacity 400 Matter Stores 300 Matter Capacity 300 Sight Range 16 Terrain Scan Density 10 Armor Coverage 150 Evasion (%) 44 Targeting Accuracy 12 Item Schematics ----------------- None Robot Schematics ------------------ None Fabricated ------------ Nothing Alien Tech Used ----------------- None Achievements -------------- None Challenges ------------ None RPGLIKE | -11 -10 -10 --------- Run | Scr Mat Min Levels Raised 1 | . 1 . XP Earned 5180 | 3000 1680 500 XP Spent 4460 | 1500 2960 . Upgrades 15 | 3 12 . Power Slot 1 | . 1 . Propulsion Slot 1 | 1 . . Utility Slot 2 | 1 1 . Weapon Slot 2 | 1 1 . Core Integrity 2 | . 2 . Heat Dissipation 5 | . 5 . Mass Support 1 | . 1 . Inventory Capacity 1 | . 1 . Protomatter Created 30 | . 30 . Integrity Restored 90 | . 90 . Core 90 | . 90 . Protomatter Decayed . | . . . Game ------ Seed CoilDispersionDatajack Manual? 0 Play Time 00:13:18 Cumulative 57.7 hours Start 2020.03.28 @ 14:42:06 End 2020.03.28 @ 14:55:23 Sessions 1 Manual Loads 0 Difficulty Rogue Special Mode Winter2019/RPGLIKE Game No. 16 Rogue 16 Adventurer 0 Explorer 0 Win Type - Total 1 Types 1/0/0/0/0/0/0 Lore% 41 Gallery% 50 Achievement% 55 Wizard Run 0 Options --------- ASCII 1 Keyboard 1 Movement Numpad Keybinds 0 Fullscreen 1 Font 16/SmallcapsGlow Map View 75x55 Tactical HUD 1 Map Filters NONE Filters NONE Steam 1 RUN: 77a12e5d-7b4b-4631-99b4-6b2f25adc393